Cogmind - Beta 15 @@@ ROGUE MODE // 2025.10.14 @ 04:15:26 Player: shapeshifter Result: Destroyed by Hotshot with Precision Phase Gun Performance ------------- Evolutions (8) 4000 Regions Visited (16) 3200 Robots Destroyed (98) 490 Value Destroyed (3751) 3751 Prototype IDs (49) 980 Alien Tech Used (1) 200 Bonus (2887) 2887 TOTAL SCORE: 15508 Bonus ------- Follower Combat Kills 1407 Registered with UFD 300 Met Optimus in HQ 500 Met Warlord at Base 500 MAIN.C Attacked Warlord 500 Scanned by Researcher 500 Friendly Fire -820 Cogmind --------- Core Integrity 0/1450 Matter 94/300 Energy 100/100 System Corruption 9% Temperature Cool (9) Movement Core (50) Location -2/Protoforge Parts ------- > --- POWER (2) -------- (None) > --- PROPULSION (8) --- (None) > --- UTILITY (10) ----- Experimental Melee Analysis Suite Improved Armor Integrity Analyzer > --- WEAPON (3) ------- (None) > --- INVENTORY (5) ---- Matter Drive Energy Well (350) Cooled Nova Cannon Perforator Peak State ------------ > --- POWER ------------ Vortex Chain Reactor > --- PROPULSION ------- Antigrav System Cooled Gravmag System Combat Gravmag System Improved Antigrav System Cooled Antigrav System Cooled Antigrav System Combat Antigrav System > --- UTILITY ---------- Large Storage Unit Spectral Analyzer Experimental Melee Analysis Suite Core Analyzer Advanced Reaction Control System Experimental Cloaking Device Advanced Force Field System Mapper Advanced System Restoration Module Power Bank > --- WEAPON ----------- Perforator Companion Sword > --- INVENTORY -------- Light Particle Reactor Micro Antimatter Reactor Antigrav System Power Amplifier Energy Well Improved Armor Integrity Analyzer Improved Force Booster Medium Regenerative Plating Experimental Focal Shield Vortex Rail Vortex Rail Vortex Cannon Vortex Cannon Vortex Driver Vortex Driver [Rating: 186] Favorites ----------- Power Vortex Chain Reactor Engine Ion Engine Power Core Reinforced Fission Core Reactor Vortex Chain Reactor Propulsion Overtuned Huge Scrapsphere Treads Light Treads Leg Enhanced Biometal Leg Wheel Overtuned Huge Scrapsphere Hover Unit Improved Antigrav System Flight Unit Xenon Bombardment Thruster Utility Large Storage Unit Device Scrap Suit Storage Large Storage Unit Processor Experimental Terrain Scan Processor Hackware System Mapper Protection Light Armor Plating Artifact Phase Redirector Weapon Companion Sword Energy Gun Overtuned Beamcaster Energy Cannon Subdweller Beam Cannon Ballistic Gun Heavy Assault Rifle Ballistic Cannon Slug Cannon Launcher EMP Blaster Special Weapon CPS Tube Impact Weapon Makeshift Hammer Slashing Weapon Companion Sword Build | -11 -10 -10 -7 -5 -5 -5 -5 -4 -4 -4 -4 -3 -3 -2 -2 -2 ------- Run | Yrd Mat Sub Scr Fac Upp Upp War Pro Fac Was Fac Res Tes Res Qua Frg Slots Evolved 16 | . . . . 10 . . . . 2 . . 2 . 2 . . Power 1 | . . . . . . . . . . . . . . 1 . . Propulsion 6 | . . . . 4 . . . . 1 . . . . 1 . . Utility 8 | . . . . 6 . . . . 1 . . 1 . . . . Weapon 1 | . . . . . . . . . . . . 1 . . . . Parts Attached 137 | 6 6 11 14 9 3 3 19 13 4 5 6 2 14 16 6 . Power 18 | 1 . 2 2 . 1 1 3 1 . . . . 2 5 . . Engine 7 | 1 . 2 2 . . 1 . . . . . . . 1 . . Core 3 | . . . . . 1 . 2 . . . . . . . . . Reactor 8 | . . . . . . . 1 1 . . . . 2 4 . . Propulsion 42 | 2 2 2 5 4 . . 4 7 1 2 3 . 3 5 2 . Treads 5 | 2 . . 2 . . . 1 . . . . . . . . . Leg 1 | . . . . . . . 1 . . . . . . . . . Wheel 13 | . 2 2 3 4 . . . 2 . . . . . . . . Hover 19 | . . . . . . . 1 5 1 2 2 . 3 5 . . Flight 4 | . . . . . . . 1 . . . 1 . . . 2 . Utility 53 | 1 2 . 5 4 2 2 7 5 3 3 3 2 5 5 4 . Device 21 | . . . 2 1 . 1 5 5 1 1 1 . 2 1 1 . Storage 8 | 1 1 . 1 . . . 2 . . . . 1 1 1 . . Processor 10 | . . . . 2 1 1 . . 1 1 2 1 . . 1 . Hackware 3 | . . . 1 . 1 . . . 1 . . . . . . . Protection 10 | . 1 . 1 1 . . . . . 1 . . 2 3 1 . Artifact 1 | . . . . . . . . . . . . . . . 1 . Weapon 24 | 2 2 7 2 1 . . 5 . . . . . 4 1 . . Energy Gun 7 | 2 . . 1 1 . . 2 . . . . . 1 . . . Energy Cannon 7 | . . 2 . . . . 2 . . . . . 2 1 . . Ballistic Gun 4 | . 2 2 . . . . . . . . . . . . . . Ballistic Cannon 2 | . . 1 . . . . . . . . . . 1 . . . Launcher 2 | . . 2 . . . . . . . . . . . . . . Special Weapon 1 | . . . . . . . 1 . . . . . . . . . Impact Weapon . | . . . . . . . . . . . . . . . . . Slashing Weapon 1 | . . . 1 . . . . . . . . . . . . . Piercing Weapon . | . . . . . . . . . . . . . . . . . Special Melee Weapon . | . . . . . . . . . . . . . . . . . Unidentified Prototypes 24 | . . . 1 . . . 11 . 2 . 3 . 5 1 1 . Parts Lost 53 | . . 8 . 2 3 1 . . 1 1 1 1 5 12 14 4 Power 8 | . . 1 . . 1 . . . . . . . 1 4 1 . Propulsion 20 | . . 3 . 2 . . . . 1 1 1 . 2 2 6 2 Utility 17 | . . 1 . . 1 1 . . . . . 1 2 5 4 2 Weapon 8 | . . 3 . . 1 . . . . . . . . 1 3 . Highest Loss Streak 10 | . . 5 . 1 2 1 . . 1 1 1 1 5 5 10 4 To Critical Strikes . | . . . . . . . . . . . . . . . . . Average Backups 12 | 4 6 7 10 7 10 13 21 23 13 14 14 14 13 11 5 3 Power . | 1 2 1 . . . 1 1 . . 1 1 1 1 . . . Propulsion 2 | 1 2 1 2 . . . 2 5 . . . 1 1 1 . . Utility 4 | . . 1 3 3 6 8 9 9 7 7 7 6 4 3 2 1 Weapon 4 | 1 2 3 3 2 3 3 5 7 6 6 6 6 5 5 2 1 Tool/Special . | . . . . . . . . . . . . . . . . . Unused Backups 20 | . 1 1 8 . . . 2 2 . . 1 1 2 . . 2 Power 2 | . . 1 . . . . . . . . . 1 . . . . Propulsion 2 | . . . 2 . . . . . . . . . . . . . Utility 7 | . . . 1 . . . 1 2 . . 1 . 1 . . 1 Weapon 8 | . 1 . 5 . . . 1 . . . . . 1 . . . Tool/Special 1 | . . . . . . . . . . . . . . . . 1 Average Slot Usage (%) 71 | . 94 95 51 60 59 63 66 70 80 75 81 78 79 79 34 13 Engine 4 | . 14 13 4 5 . . . . . . . . . . . . Reactor 1 | . . . . . . . 2 6 4 4 4 4 4 7 . . Treads 5 | . 1 11 9 . . . 1 3 . . . . . . . . Wheel 9 | . 26 14 6 18 11 11 10 10 . . . . . . . . Hover 4 | . . . . . . . . 4 30 27 31 29 29 29 2 . Device 9 | . . . 2 11 11 10 17 25 22 19 21 18 16 11 1 1 Storage 9 | . 14 14 14 5 5 5 5 5 4 4 4 4 4 4 1 . Processor 5 | . . . . 6 15 17 11 5 8 8 9 13 12 12 14 8 Hackware 1 | . . . 1 . 3 5 2 . 3 4 4 4 4 4 2 . Protection 3 | . 9 12 1 4 . . . . . 1 . . 2 4 2 . Energy Gun 1 | . 6 . 3 . 1 . . . . . . . . . 1 . Energy Cannon 2 | . . 10 . . . . . . . . . . . . . . Ballistic Gun 4 | . 21 16 . . . . . . . . . . . . . . Slashing Weapon 3 | . . . 7 5 5 5 5 5 4 4 4 4 4 4 . . Peak Build Rating 186 | 6 10 13 36 81 76 83 145 150 155 157 152 160 186 182 114 34 Average Rating 65 | 4 8 10 19 70 69 78 110 138 153 145 150 159 161 150 56 24 On Entrance 85 | . 6 10 5 36 70 76 79 142 141 148 151 150 160 125 114 34 Naked Turns . | . . . . . . . . . . . . . . . . . Heaviest Build 161 | 14 24 34 40 56 53 51 161 160 85 84 83 83 109 96 47 13 Greatest Support 103 | 40 40 40 60 56 40 40 40 76 87 103 97 85 91 103 89 12 Greatest Overweight (x) 6 | . . 5 1 1 1 1 4 3 1 1 1 . 1 . 6 4 Average Overweight (x) . | . . . . . . . 2 2 . . . . . . . . Largest Inventory Capacity 25 | 8 10 10 15 15 15 15 25 25 15 15 15 15 15 15 15 5 Average Capacity 14 | 7 9 10 12 15 15 15 22 23 15 15 15 15 15 15 8 5 Most Carried 25 | 5 9 10 15 13 14 15 25 25 15 15 15 15 15 15 11 5 Average Carried 12 | 4 6 7 11 8 11 14 21 23 13 14 14 14 14 13 6 4 Final Capacity 25 | 8 10 10 15 15 15 15 25 15 15 15 15 15 15 15 5 5 Final Carried 24 | 5 7 6 15 10 14 15 24 15 15 15 15 15 14 15 5 5 Class Distribution -------------------- 50% | Mutant 14% | Scrapper 9% | Generator-Scrapper 8% | Scavenger-Mutant 7% | Commander-Scrapper 4% | Hacker-Mutant Dominant Class ---------------- Mutant | -10/Materials Mutant | -10/Subcaves Mutant | -7/Scraptown Scrapper | -5/Factory Scrapper | -5/Upper Caves Scrapper | -5/Upper Caves Scrapper | -5/Warlord Generator-Scrapper | -4/Proximity Caves Scavenger-Mutant | -4/Factory Scavenger-Mutant | -4/Waste Scavenger-Mutant | -4/Factory Scavenger-Mutant | -3/Research Generator-Mutant | -3/Testing Hacker-Mutant | -2/Research Hacker-Mutant | -2/Quarantine Mutant | -2/Protoforge Resources | -11 -10 -10 -7 -5 -5 -5 -5 -4 -4 -4 -4 -3 -3 -2 -2 -2 ----------- Run | Yrd Mat Sub Scr Fac Upp Upp War Pro Fac Was Fac Res Tes Res Qua Frg Matter Collected 3487 | 260 159 552 184 120 45 40 770 330 70 55 100 25 112 523 142 . Remotely . | . . . . . . . . . . . . . . . . . Salvage Created 5114 | 63 160 521 . 327 428 223 . 497 193 131 765 250 446 885 225 . Parts 251 | 7 11 29 . 17 19 13 . 19 12 6 30 5 26 53 4 . Haulers Intercepted 6 | . 1 . . . . . . . 1 . 2 1 . 1 . . Recyclers Shooed 1 | . . . . . . . . . . . 1 . . . . . Parts Field Recycled . | . . . . . . . . . . . . . . . . . Retrieved Matter . | . . . . . . . . . . . . . . . . . Parts Self-Destructed 110 | . . 14 . . 28 13 . 55 . . . . . . . . Prevented 4 | . . . . . . . . 4 . . . . . . . . Kills | -11 -10 -10 -7 -5 -5 -5 -5 -4 -4 -4 -4 -3 -3 -2 -2 -2 ------- Run | Yrd Mat Sub Scr Fac Upp Upp War Pro Fac Was Fac Res Tes Res Qua Frg Combat Hostiles Destroyed 67 | . 4 14 . 6 9 3 . 5 1 . 5 1 7 9 3 . Melee 41 | . . . . 6 8 3 . 5 1 . 5 1 5 7 . . Guns 14 | . 4 8 . . . . . . . . . . . . 2 . Cannons 10 | . . 5 . . . . . . . . . . 2 2 1 . AOE 1 | . . 1 . . . . . . . . . . . . . . Classes Destroyed 19 | 1 4 1 . 2 1 2 . 2 . 1 2 . 2 . 1 . Worker 6 | . 1 . . 1 . . . . 1 . . . 1 2 . . Builder 1 | . . . . . . . . . . . . . 1 . . . Tunneler 5 | 3 . . . 1 . . . . 1 . . . . . . . Hauler 6 | . 1 . . . . . . . 1 . 2 1 . 1 . . Recycler 4 | . . . . . . . . 1 . . 1 . . 2 . . Mechanic 1 | . . . . . . . . . . . 1 . . . . . Watcher 3 | . . . . 1 . . . . . . . 1 . 1 . . Swarmer 26 | . 3 2 . 4 6 . . 1 . . . . 4 5 1 . Grunt 9 | . 1 2 . 1 2 1 . . . . . . 1 . 1 . Duelist 1 | . . . . . . . . . . . . . . . 1 . Researcher 2 | . . . . . . . . . . . . . 1 . 1 . Sentry 6 | . . . . 1 1 . . . . . 2 1 . 1 . . Hunter 8 | . . . . . . 2 . 3 1 . 2 . . . . . Programmer 6 | . . . . . . . . . . . 1 . 2 3 . . Behemoth 1 | . . . . . . . . 1 . . . . . . . . Subdweller 10 | . . 10 . . . . . . . . . . . . . . Samaritan 1 | . . . . . . 1 . . . . . . . . . . Martyr 2 | . . . . . . . . . . 2 . . . . . . Mutant 1 | . . . . . 1 . . . . . . . . . . . Best Kill Streak 10 | 2 3 2 . 3 5 2 . 2 3 . 3 1 10 7 2 . Combat Bots Only 7 | . 3 2 . 3 5 2 . 2 1 . 1 1 7 5 2 . Max Kills in Single Turn 3 | 1 1 1 . 1 2 1 . 1 1 1 1 1 3 3 1 . Gunslinging . | . . . . . . . . . . . . . . . . . Exploded 1 | . . 1 . . . . . . . . . . . . . . Melee 2 | . . . . 1 2 1 . 1 1 . 1 1 1 2 . . Uniques/NPCs Destroyed . | . . . . . . . . . . . . . . . . . Combat | -11 -10 -10 -7 -5 -5 -5 -5 -4 -4 -4 -4 -3 -3 -2 -2 -2 -------- Run | Yrd Mat Sub Scr Fac Upp Upp War Pro Fac Was Fac Res Tes Res Qua Frg Hostile Shots Fired 925 | . 17 52 . 99 76 25 . 156 78 1 86 2 88 109 101 35 Missed 349 | . 7 11 . 32 26 8 . 48 40 . 68 1 32 33 31 12 Hits 576 | . 10 41 . 67 50 17 . 108 38 1 18 1 56 76 70 23 Melee 5 | . . . . 1 . . . . . 1 . . . . 3 . Projectile 571 | . 10 41 . 66 50 17 . 108 38 . 18 1 56 76 67 23 AOE 2 | . . 1 . . . . . . . . . . 1 . . . Critical Strikes 27 | . 1 2 . 2 2 1 1 6 . . 2 . 2 6 2 . Actively Blocked 1 | . . . . . . . . . . . . . . 1 . . Part Disruptions 1 | . . . . . . . . . . . . . 1 . . . Damage Taken 11099 | . 81 1268 . 1320 790 273 17 1047 330 35 239 31 1309 2135 1667 557 Core 2522 | . 19 220 . 206 176 28 . 101 46 25 16 16 192 440 560 477 Absorbed by Shields 1443 | . . . . . . 35 6 528 232 27 231 15 348 21 . . Redirected to Shielding 377 | . . . . . . . . . . . . . . 277 87 13 Ignored by Resistances 574 | . . . . . . . 11 525 38 . . . . . . . Regen/Repaired (Parts) 300 | . . . . 10 . . 23 . . 79 29 . 24 135 . . Core Remaining (%) 65 | 100 . . 4 . . . . 48 . . 92 . 84 . . . Volleys Fired 193 | 8 18 102 . 4 . . 3 3 . . . . 13 12 29 1 Largest 2 | 2 2 2 . 1 . . 1 1 . . . . 1 1 1 1 Hottest 225 | 80 46 160 . 120 . . 225 100 . . . . 100 100 150 50 Shots Fired 308 | 16 36 191 . 4 . . 3 3 . . . . 13 12 29 1 Gun 242 | 16 36 151 . 4 . . 1 3 . . . . 7 . 24 . Cannon 63 | . . 39 . . . . . . . . . . 6 12 5 1 Launcher 1 | . . 1 . . . . . . . . . . . . . . Special 2 | . . . . . . . 2 . . . . . . . . . Kinetic 202 | . 36 151 . . . . . . . . . . 5 7 3 . Thermal 50 | . . 39 . 4 . . 1 3 . . . . . . 2 1 Explosive . | . . . . . . . . . . . . . . . . . Electromagnetic 17 | 16 . 1 . . . . . . . . . . . . . . Entropic 37 | . . . . . . . . . . . . . 8 5 24 . Robot Hit Streak 11 | 3 5 11 . . . . . 3 . . . . 6 4 6 . Robot Miss Streak 7 | 2 3 4 . . . . 2 . . . . . 5 6 7 . Penetration Max 1 | . . . . . . . . . . . . . . 1 . . Secondary Targets 2 | . 2 . . . . . . . . . . . . . . . Max Gunslinging Chain 1 | . 1 . . . . . . . . . . . . . . . Shots Hit Robots 307 | 7 22 59 . 21 20 9 1 32 22 5 23 12 18 37 19 . Core Hits 151 | 3 7 21 . 8 10 5 . 10 7 2 11 2 21 29 15 . Critical Kills 9 | . . . . . . . . . . . . . 3 4 2 . Critical Parts Destroyed 17 | . . . . . . . . . . . . . 6 10 1 . Critical Strikes 33 | . . . . . . . . 1 2 . . . 9 16 5 . Burn 1 | . . . . . . . . 1 . . . . . . . . Meltdown 1 | . . . . . . . . . . . . . . . 1 . Destroy 25 | . . . . . . . . . . . . . 9 14 2 . Melee Attacks 282 | . . . . 30 35 11 1 38 25 13 31 18 27 43 10 . Impact 1 | . . . . . 1 . . . . . . . . . . . Slashing 281 | . . . . 30 34 11 1 38 25 13 31 18 27 43 10 . Piercing . | . . . . . . . . . . . . . . . . . Sneak Attacks 29 | . . . . 2 2 1 1 2 4 5 6 1 1 4 . . Combat Hostiles 3 | . . . . . . . . . . . 1 . 1 1 . . Follow-up Attacks 5 | . . . . . 2 . . . . . . . . 2 1 . Damage Inflicted 12418 | 121 351 1057 . 924 932 372 94 1351 1182 386 1312 696 1053 1827 742 18 Guns 1318 | 121 351 571 . . . . . 83 . . . . . . 192 . Cannons 1107 | . . 447 . . . . . . . . . . 92 402 166 . Explosions 248 | . . 39 . . . . . . . . . . 209 . . . Melee 9655 | . . . . 924 932 372 94 1268 1182 386 1312 696 680 1425 384 . Ramming 90 | . . . . . . . . . . . . . 72 . . 18 Kinetic 1190 | . 351 571 . . . . . . . . . . 92 136 40 . Thermal 656 | . . 447 . . . . . 83 . . . . . . 126 . Explosive . | . . . . . . . . . . . . . . . . . Electromagnetic 369 | 121 . 39 . . . . . . . . . . 209 . . . Impact 31 | . . . . . 31 . . . . . . . . . . . Slashing 9624 | . . . . 924 901 372 94 1268 1182 386 1312 696 680 1425 384 . Piercing . | . . . . . . . . . . . . . . . . . Entropic 458 | . . . . . . . . . . . . . . 266 192 . Highest Corruption 11 | . . 5 . . . . . . . . . . 11 7 9 9 Average Corruption 5 | . . 5 . . . . . . . . . . 3 6 7 9 Corruption Purged 2 | . . . . . . . . . . . . . 2 . . . Corruption Blocked . | . . . . . . . . . . . . . . . . . Effects 38 | . . 25 . . . . . . . . . . 2 5 4 2 Message Errors 12 | . . 7 . . . . . . . . . . 1 2 1 1 Matter Fused 10 | . . 7 . . . . . . . . . . 1 . 1 1 Heat Flow Errors 7 | . . 5 . . . . . . . . . . . 2 . . Energy Discharges 5 | . . 3 . . . . . . . . . . . . 2 . Data Loss (minor) 3 | . . 2 . . . . . . . . . . . 1 . . Data Loss (major) 1 | . . 1 . . . . . . . . . . . . . . Overload Shots 3 | . . . . . . . 1 . . . . . . . 2 . Effects 1 | . . . . . . . . . . . . . . . 1 . Short Circuit 1 | . . . . . . . . . . . . . . . 1 . Overflow Damage 740 | . . . . 142 40 . . 26 94 38 81 147 54 115 3 . Projectiles 58 | . . . . . . . . . . . . . . 55 3 . Explosions . | . . . . . . . . . . . . . . . . . Melee 682 | . . . . 142 40 . . 26 94 38 81 147 54 60 . . Knockbacks 16 | . . . . . . . . . . . . . 6 7 3 . Impact . | . . . . . . . . . . . . . . . . . Kinetic 15 | . . . . . . . . . . . . . 6 6 3 . Secondary 1 | . . . . . . . . . . . . . . 1 . . Self-Inflicted Damage 108 | . . 20 . . . . . . . . . . 79 . . 9 Shots 2 | . . 1 . . . . . . . . . . 1 . . . Rammed 4 | . . . . . . . . . . . . . 1 . . 3 Targets Rammed 4 | . . . . . . . . . . . . . 1 . . 3 Kicked . | . . . . . . . . . . . . . . . . . Crushed . | . . . . . . . . . . . . . . . . . Highest Temperature 545 | 54 4 284 . 380 . . 160 238 132 72 354 2 141 545 15 . Average Temperature 85 | 23 3 67 . 166 . . 93 116 55 28 70 2 55 130 12 . Received Heat Transfer 2054 | . 12 486 . 279 189 99 . 112 30 . 35 4 138 445 162 63 Effects 9 | . . . . 1 . . . . . . . . . 8 . . Shutdowns 4 | . . . . 1 . . . . . . . . . 3 . . Energy Bleed 1 | . . . . . . . . . . . . . . 1 . . Short Circuit 1 | . . . . . . . . . . . . . . 1 . . Damage (major) 3 | . . . . . . . . . . . . . . 3 . . Siege Activations . | . . . . . . . . . . . . . . . . . Martial Activations . | . . . . . . . . . . . . . . . . . Shielding Activations . | . . . . . . . . . . . . . . . . . Robots Disrupted 4 | . . . . . 1 . . . . . 1 . 1 1 . . Combat Hostiles 4 | . . . . . 1 . . . . . 1 . 1 1 . . Robots Corrupted 1 | . . . . . 1 . . . . . . . . . . . Combat Hostiles 1 | . . . . . 1 . . . . . . . . . . . Parts Fried 2 | . . . . . 1 . . . . . . . 1 . . . Impact Corruptions 1 | . . . . . 1 . . . . . . . . . . . Robots Melted 1 | . . . . . . . . . . . . . . . 1 . Combat Hostiles . | . . . . . . . . . . . . . . . . . Parts Melted 6 | . . 2 . . . . . . . . 1 . . . 3 . Heat Transferred 942 | . . 592 . . . . . 250 . . . . . . 100 . Parts Sabotaged . | . . . . . . . . . . . . . . . . . Parts Stolen . | . . . . . . . . . . . . . . . . . Parts Stripped . | . . . . . . . . . . . . . . . . . Power Chain Reactions . | . . . . . . . . . . . . . . . . . Alert | -11 -10 -10 -7 -5 -5 -5 -5 -4 -4 -4 -4 -3 -3 -2 -2 -2 ------- Run | Yrd Mat Sub Scr Fac Upp Upp War Pro Fac Was Fac Res Tes Res Qua Frg Maximum Alert Level 1 | . . . . . . . . . . . 1 . 1 1 . . Low Security (%) 95 | 100 100 . . 100 . . . . 100 100 89 100 86 83 100 100 Level 1 4 | . . . . . . . . . . . 10 . 13 16 . . Level 2 . | . . . . . . . . . . . . . . . . . Level 3 . | . . . . . . . . . . . . . . . . . Level 4 . | . . . . . . . . . . . . . . . . . Level 5 . | . . . . . . . . . . . . . . . . . High Security . | . . . . . . . . . . . . . . . . . Max Security . | . . . . . . . . . . . . . . . . . Peak Influence 240 | 10 70 . . 193 . . . . 158 43 227 115 240 214 184 89 Initial 113 | . . . . . . . . . 44 39 . 113 29 109 93 89 Average 69 | 1 10 . . 55 . . . . 75 10 112 82 98 153 102 39 Influence Increases 3663 | 15 152 100 . 363 249 157 184 467 213 66 539 50 376 391 326 15 Destroy 0b10 Robot/C 1740 | . 80 80 . 120 220 120 120 280 100 . 180 20 160 180 80 . Destroy 0b10 Robot/NC 130 | 15 10 . . 15 . . . 5 15 . 20 10 10 30 . . Destroy Leader 278 | . 22 20 . 22 20 20 . 20 32 . 64 14 10 34 . . Allied During Kill 332 | . . . . . 9 17 34 102 36 . 134 . . . . . Successful Hack 95 | . 10 . . 25 . . . . . . 2 . 31 6 21 . Select Force Hacks 30 | . 30 . . . . . . . . . . . . . . . Disable Machine 135 | . . . . . . . . . . . . . 75 . 60 . Destroy Structure 293 | . . . . 16 . . . . . 66 4 6 60 66 75 . Partial Spotted 30 | . . . . . . . . . . . . . 30 . . . Lose Combat Pursuer 600 | . . . . 165 . . 30 60 30 . 135 . . 75 90 15 Influence Decreases 3639 | 15 98 154 . 170 388 211 158 423 171 178 322 214 234 420 333 150 Entered New Map 591 | . . 26 . . 72 11 . 26 26 73 . 104 24 86 73 70 Time Decay 2105 | 15 98 102 . 150 286 130 98 337 60 83 112 100 160 214 120 40 Lost Part 468 | . . 26 . 20 30 10 . . 10 2 10 10 50 120 140 40 Lost Ally 475 | . . . . . . 60 60 60 75 20 200 . . . . . Squads Dispatched 37 | . 2 . . 8 . . . 1 2 . 7 4 5 4 3 1 Investigation 13 | . 1 . . 4 . . . 1 . . 2 3 . 1 1 . Extermination 5 | . . . . 1 . . . . . . . 1 . 2 1 . Reinforcement 14 | . 1 . . 3 . . . . 1 . 2 . 4 1 1 1 Assault 1 | . . . . . . . . . . . . . 1 . . . Garrison 4 | . . . . . . . . . 1 . 3 . . . . . Intercept . | . . . . . . . . . . . . . . . . . Searches Triggered . | . . . . . . . . . . . . . . . . . Construction Impeded 1 | . . . . . . . . . . . . . 1 . . . Haulers Reinforced 3 | . . . . . . . . . 1 . 1 . 1 . . . Active Scanning Responses . | . . . . . . . . . . . . . . . . . Cargo Convoy Interrupts . | . . . . . . . . . . . . . . . . . Stealth | -11 -10 -10 -7 -5 -5 -5 -5 -4 -4 -4 -4 -3 -3 -2 -2 -2 --------- Run | Yrd Mat Sub Scr Fac Upp Upp War Pro Fac Was Fac Res Tes Res Qua Frg Distress Signals 9 | . 1 . . . . . . 1 2 . . . 3 1 . 1 Communications Jammed . | . . . . . . . . . . . . . . . . . Distress Signals . | . . . . . . . . . . . . . . . . . Times Spotted 252 | . 8 15 . 24 13 6 53 31 13 6 21 2 16 21 14 9 Peak Tracking Total 14 | . 3 2 . 8 5 4 14 9 8 6 12 1 6 6 9 9 Tactical Retreats 22 | . . . . 7 . . 1 4 1 . 2 . . 4 2 1 Traps | -11 -10 -10 -7 -5 -5 -5 -5 -4 -4 -4 -4 -3 -3 -2 -2 -2 ------- Run | Yrd Mat Sub Scr Fac Upp Upp War Pro Fac Was Fac Res Tes Res Qua Frg Traps Triggered 6 | . . 1 . . . . . . 1 . . . 1 . 2 1 Indirectly . | . . . . . . . . . . . . . . . . . Trap Hack Attempts . | . . . . . . . . . . . . . . . . . Triggered . | . . . . . . . . . . . . . . . . . Disarmed . | . . . . . . . . . . . . . . . . . Reprogrammed . | . . . . . . . . . . . . . . . . . Reused . | . . . . . . . . . . . . . . . . . Traps Extracted . | . . . . . . . . . . . . . . . . . Installed . | . . . . . . . . . . . . . . . . . Triggered . | . . . . . . . . . . . . . . . . . Machines | -11 -10 -10 -7 -5 -5 -5 -5 -4 -4 -4 -4 -3 -3 -2 -2 -2 ---------- Run | Yrd Mat Sub Scr Fac Upp Upp War Pro Fac Was Fac Res Tes Res Qua Frg Machines Disabled 14 | . . 1 . . 1 . 1 1 . . . . 6 . 4 . Max in Single Turn 1 | . . 1 . . 1 . 1 1 . . . . 1 . 1 . Garrison Access 1 | . . . . . . . . . . . . 1 . . . . Machines Repaired . | . . . . . . . . . . . . . . . . . Machines Dismantled . | . . . . . . . . . . . . . . . . . Machines Sabotaged . | . . . . . . . . . . . . . . . . . Overloaded Fab Kills . | . . . . . . . . . . . . . . . . . Hacking | -11 -10 -10 -7 -5 -5 -5 -5 -4 -4 -4 -4 -3 -3 -2 -2 -2 --------- Run | Yrd Mat Sub Scr Fac Upp Upp War Pro Fac Was Fac Res Tes Res Qua Frg Machines Accessed 52 | . 5 1 5 11 1 . 1 3 2 . 4 7 5 5 1 1 Terminals 28 | . 4 . . 6 . . . 1 2 . 1 3 5 4 1 1 Fabricators 2 | . . . . 1 . . . 1 . . . . . . . . Repair Stations . | . . . . . . . . . . . . . . . . . Recycling Units 12 | . 1 . . 4 . . . 1 . . 2 3 . 1 . . Scanalyzers . | . . . . . . . . . . . . . . . . . Garrison Access 2 | . . . . . . . . . . . 1 1 . . . . Total Hacks 110 | . 16 1 13 28 1 . 1 5 3 . 6 16 9 8 2 1 Successful 57 | . 8 1 13 13 1 . 1 1 . . 3 9 3 3 1 . Failed 53 | . 8 . . 15 . . . 4 3 . 3 7 6 5 1 1 Catastrophic 13 | . . . . 3 . . . 1 1 . . 2 2 2 1 1 Database Lockouts . | . . . . . . . . . . . . . . . . . Manual 52 | . 11 . . 21 . . . 3 . . 3 5 4 5 . . Terminals 62 | . 13 . . 17 . . . 1 3 . 2 7 9 7 2 1 Fabricators 4 | . . . . 3 . . . 1 . . . . . . . . Repair Stations . | . . . . . . . . . . . . . . . . . Recycling Units 25 | . 3 . . 8 . . . 3 . . 2 8 . 1 . . Scanalyzers . | . . . . . . . . . . . . . . . . . Garrison Access 3 | . . . . . . . . . . . 2 1 . . . . Terminal Hacks 29 | . 1 1 13 3 1 . 1 1 . . 1 2 3 1 1 . Record 11 | . . . 11 . . . . . . . . . . . . . Open Door 5 | . . . 1 . 1 . 1 1 . . . . 1 . . . Branch Access Points 5 | . 1 . . 1 . . . . . . . 1 . 1 1 . Emergency Access Points 2 | . . . . . . . . . . . 1 . 1 . . . Machine Index 1 | . . . . . . . . . . . . . 1 . . . Alert Level 1 | . . . . . . . . . . . . 1 . . . . Zone Layout 2 | . . . . 2 . . . . . . . . . . . . Proto ID Catalog 2 | . . 1 1 . . . . . . . . . . . . . Fabricator Hacks 1 | . . . . 1 . . . . . . . . . . . . Network Status 1 | . . . . 1 . . . . . . . . . . . . Repair Station Hacks . | . . . . . . . . . . . . . . . . . Recycling Unit Hacks 6 | . 1 . . 2 . . . . . . . 3 . . . . Report Inventory 2 | . . . . 1 . . . . . . . 1 . . . . Retrieve Components 4 | . 1 . . 1 . . . . . . . 2 . . . . Scanalyzer . | . . . . . . . . . . . . . . . . . Garrison Access Hacks 1 | . . . . . . . . . . . . 1 . . . . Seal Access 1 | . . . . . . . . . . . . 1 . . . . Unauthorized Hacks 20 | . 6 . . 7 . . . . . . 2 3 . 2 . . Terminals 9 | . 5 . . 3 . . . . . . . . . 1 . . Botnet 4 | . 2 . . 2 . . . . . . . . . . . . Disrupt 1 | . . . . . . . . . . . . . . 1 . . Skim 4 | . 3 . . 1 . . . . . . . . . . . . Fabricators . | . . . . . . . . . . . . . . . . . Repair Stations . | . . . . . . . . . . . . . . . . . Recycling Units 11 | . 1 . . 4 . . . . . . 2 3 . 1 . . Tunnel 1 | . 1 . . . . . . . . . . . . . . . Fedlink 10 | . . . . 4 . . . . . . 2 3 . 1 . . Scanalyzers . | . . . . . . . . . . . . . . . . . Garrison Access . | . . . . . . . . . . . . . . . . . Data Cores Recovered 1 | . 1 . . . . . . . . . . . . . . . Used 1 | . 1 . . . . . . . . . . . . . . . Hacking Detections 31 | . 4 . . 7 . . . 2 2 . 2 4 5 3 1 1 Full Trace Events 1 | . . . . . . . . 1 . . . . . . . . Feedback Events . | . . . . . . . . . . . . . . . . . Feedback Blocked . | . . . . . . . . . . . . . . . . . Robot Schematics Acquired 1 | . . . . . . . . . . . . . 1 . . . Robots Built . | . . . . . . . . . . . . . . . . . Authchips . | . . . . . . . . . . . . . . . . . Time . | . . . . . . . . . . . . . . . . . Total Robot Build Rating . | . . . . . . . . . . . . . . . . . Part Schematics Acquired 3 | . . . . . . . . . . . . . 1 . 2 . Parts Built . | . . . . . . . . . . . . . . . . . Authchips . | . . . . . . . . . . . . . . . . . Time . | . . . . . . . . . . . . . . . . . Total Part Build Rating . | . . . . . . . . . . . . . . . . . Parts Repaired . | . . . . . . . . . . . . . . . . . Time . | . . . . . . . . . . . . . . . . . Parts Recycled . | . . . . . . . . . . . . . . . . . Recycled Matter . | . . . . . . . . . . . . . . . . . Retrieved Matter . | . . . . . . . . . . . . . . . . . Retrieved Components 16 | . 9 . . 2 . . . . . . . 5 . . . . Parts Scanalyzed . | . . . . . . . . . . . . . . . . . Part Schematics Acquired . | . . . . . . . . . . . . . . . . . Parts Damaged . | . . . . . . . . . . . . . . . . . Bothacking | -11 -10 -10 -7 -5 -5 -5 -5 -4 -4 -4 -4 -3 -3 -2 -2 -2 ------------ Run | Yrd Mat Sub Scr Fac Upp Upp War Pro Fac Was Fac Res Tes Res Qua Frg Used RIF Installer . | . . . . . . . . . . . . . . . . . Robots Hacked . | . . . . . . . . . . . . . . . . . Non-combat . | . . . . . . . . . . . . . . . . . Combat . | . . . . . . . . . . . . . . . . . Robot Hacks Applied . | . . . . . . . . . . . . . . . . . Relay Couplers Released . | . . . . . . . . . . . . . . . . . Fabnet Peak Effective % . | . . . . . . . . . . . . . . . . . Robots Rewired 23 | . . . . . 5 . 5 12 . . 1 . . . . . Allies Hacked . | . . . . . . . . . . . . . . . . . Hacks Repelled . | . . . . . . . . . . . . . . . . . Allies | -11 -10 -10 -7 -5 -5 -5 -5 -4 -4 -4 -4 -3 -3 -2 -2 -2 -------- Run | Yrd Mat Sub Scr Fac Upp Upp War Pro Fac Was Fac Res Tes Res Qua Frg Total Allies 41 | . . . . . 5 . 5 12 . 18 1 . . . . . Largest Group 18 | . . . . . 5 4 5 10 5 18 10 . . . . . Highest-Rated Group 638 | . . . . . 166 117 238 313 236 638 388 . . . . . Highest-Rated Ally 64 | . . . . . 49 30 64 64 56 51 49 . . . . . Total Orders 8 | . . . . . . . 4 4 . . . . . . . . STAY 1 | . . . . . . . 1 . . . . . . . . . FOLLOW 2 | . . . . . . . 2 . . . . . . . . . AID 1 | . . . . . . . 1 . . . . . . . . . EXPLORE 2 | . . . . . . . . 2 . . . . . . . . RETURN 2 | . . . . . . . . 2 . . . . . . . . Ally Attacks 347 | . . . . . 9 41 27 60 46 97 67 . . . . . Total Damage 11824 | . . . . . 360 625 1123 1827 1081 5251 1557 . . . . . Kills 42 | . . . . . 3 3 6 10 4 12 4 . . . . . Allies Corrupted 2 | . . . . . . . 1 . . . 1 . . . . . Allies Melted 1 | . . . . . . . 1 . . . . . . . . . Intel | -11 -10 -10 -7 -5 -5 -5 -5 -4 -4 -4 -4 -3 -3 -2 -2 -2 ------- Run | Yrd Mat Sub Scr Fac Upp Upp War Pro Fac Was Fac Res Tes Res Qua Frg Active Infowar (turns) 6504 | . . . 343 431 629 524 1288 1304 131 382 247 206 325 459 235 . Optics 1984 | . . . . . . . . . 130 382 247 206 325 459 235 . Terrain 1488 | . . . 343 431 629 85 . . . . . . . . . . Decoding 1714 | . . . . . 456 524 734 . . . . . . . . . Cloaking 2966 | . . . . . . . 555 1304 115 345 148 204 295 . . . Robot Analysis Total . | . . . . . . . . . . . . . . . . . Derelict Logs Recovered 8 | . . 3 2 . . 2 . 1 . . . . . . . . Drone Launches 4 | . . . . . . . . 4 . . . . . . . . Drone Recoveries 2 | . . . . . . . . 2 . . . . . . . . Exploration | -11 -10 -10 -7 -5 -5 -5 -5 -4 -4 -4 -4 -3 -3 -2 -2 -2 ------------- Run | Yrd Mat Sub Scr Fac Upp Upp War Pro Fac Was Fac Res Tes Res Qua Frg Turns Passed 12285 | 177 474 2710 2646 431 629 524 1288 1304 131 382 247 206 325 459 259 93 Spaces Moved 10514 | 98 384 1894 1808 455 378 579 1124 985 151 423 288 453 415 635 304 140 Core 123 | 18 . 2 . . . . . . . . . . . . 7 96 Treads 1567 | 80 2 670 815 . . . . . . . . . . . . . Legs . | . . . . . . . . . . . . . . . . . Wheels 5939 | . 382 1222 993 455 378 579 1124 806 . . . . . . . . Hover 2550 | . . . . . . . . 179 151 423 288 453 415 635 6 . Flight 335 | . . . . . . . . . . . . . . . 291 44 Fastest Speed 24 | 50 100 100 100 70 70 70 80 40 36 29 24 34 34 33 37 37 Average Speed 89 | 139 100 123 131 73 77 79 90 100 39 44 35 34 38 36 46 48 Slowest Speed 350 | 160 160 300 160 80 80 80 110 122 98 102 102 34 100 42 350 250 Overloaded Moves 33 | . . . . . . . . . . 27 6 . . . . . Propulsion Burnouts . | . . . . . . . . . . . . . . . . . Robots Hopped 5 | . 1 . . . . . . . . . . . . . 4 . Potential Cave-ins 1 | . . 1 . . . . . . . . . . . . . . Cave-ins Triggered 2 | . . 1 . . . . . . . . . . 1 . . . Exploration Rate (%) 47 | 6 61 80 87 20 57 68 91 71 4 97 13 18 60 21 46 7 Regions Visited 16 Branch Regions 9 Pre-discovered Areas 4 | . 1 1 1 1 . . . . . . . . . . . . Known Exits Taken 4 | . . . . 1 . . . . . . 1 1 . 1 . . Unknown Exits Taken 10 | 1 1 1 1 . 1 1 1 1 . . . . 1 . 1 . Scrap Searched 22 | . . 9 6 . 3 1 . 3 . . . . . . . . Spaces Dug 79 | . . 6 . 8 . . . . . 8 . 3 19 11 24 . Terrain Destroyed 124 | . . 13 . 9 . . . . . 8 . 3 24 23 44 . Melee 35 | . . . . 5 . . . . . 8 . 3 8 11 . . Projectile 74 | . . 13 . 4 . . . . . . . . 11 5 41 . AOE 1 | . . . . . . . . . . . . . 1 . . . Terrain Rammed . | . . . . . . . . . . . . . . . . . Walls Destroyed . | . . . . . . . . . . . . . . . . . Machines Disabled . | . . . . . . . . . . . . . . . . . Actions | -11 -10 -10 -7 -5 -5 -5 -5 -4 -4 -4 -4 -3 -3 -2 -2 -2 --------- Run | Yrd Mat Sub Scr Fac Upp Upp War Pro Fac Was Fac Res Tes Res Qua Frg Total 12681 | 122 436 2080 2086 507 667 623 1399 1252 189 593 389 480 531 783 380 164 Wait 1024 | . 19 53 214 . 223 25 146 74 3 147 29 2 24 50 12 3 Move 10488 | 97 381 1893 1807 454 377 578 1123 984 151 422 286 452 414 634 295 140 Hop 5 | . 1 . . . . . . . . . . . . . 4 . Pick Up 145 | 11 7 8 29 5 8 3 26 9 3 1 5 3 9 11 7 . Fast Attach 36 | . . . 2 . . 1 6 5 . 5 5 . 6 4 2 . Attach 113 | 6 4 10 12 9 4 1 16 10 2 1 1 2 10 14 10 1 Detach 30 | . . 3 1 2 . . 8 1 . . . . 6 4 4 1 Swap 38 | . 2 4 . . . 2 5 8 4 2 2 1 4 4 . . Drop 129 | . 4 7 21 3 3 2 18 22 1 2 10 2 17 9 8 . Fire 193 | 8 18 102 . 4 . . 3 3 . . . . 13 12 29 1 Melee 276 | . . . . 30 33 11 1 37 25 13 31 18 27 41 9 . Ram 4 | . . . . . . . . . . . . . 1 . . 3 Kick . | . . . . . . . . . . . . . . . . . Crush . | . . . . . . . . . . . . . . . . . Escape Stasis 30 | . . . . . . . . . . . 15 . . . . 15 Rewire 170 | . . . . . 19 . 47 99 . . 5 . . . . . Trap . | . . . . . . . . . . . . . . . . . Miscellaneous . | . . . . . . . . . . . . . . . . . Route ------- -11/Scrapyard -10/Materials (discovered 4 exits: [*Mat x2] / Min / *Sub) -10/Subcaves (discovered 2 exits: [*Mat] / *Scr) -7/Scraptown (discovered 2 exits: *Fac x2) -5/Factory (discovered 2 exits: *Upp x2) -5/Upper Caves -5/Upper Caves (discovered 2 exits: *Fac / *War) -5/Warlord -4/Proximity Caves -4/Factory -4/Waste -4/Factory -3/Research (discovered 3 exits: Arm / *Tes x2) -3/Testing -2/Research (discovered 2 exits: *Qua x2) -2/Quarantine (discovered 2 exits: [*Sec] / *Frg) -2/Protoforge History --------- Turn | Location | Event 7 | -11/Scrapyard | Discovered new exit (range 14) 178 | -11/Scrapyard | Entered Materials 179 | -10/Materials | Met a group of wandering Federalists 220 | -10/Materials | Identified exit to Mines 306 | -10/Materials | Build established: Mutant 536 | -10/Materials | Discovered new exit (range 16) 629 | -10/Materials | Discovered new exit (range 15) 650 | -10/Materials | Discovered new exit (range 3) 652 | -10/Materials | Entered Subcaves 653 | -10/Subcaves | Continued accompanying wandering Federalists (3) 653 | -10/Subcaves | Approached by a straggling Scientist 776 | -10/Subcaves | Learned location of Zion (-6) 776 | -10/Subcaves | Met a Zionite searching for "candidates" 782 | -10/Subcaves | Learned Materials terminal intel 855 | -10/Subcaves | A swath of the cavern ceiling suddenly collapsed 875 | -10/Subcaves | Wandering Federalist uncovered a shortcut to Scraptown 916 | -10/Subcaves | Shifting Twisted Machinery released Sub. Optics 921 | -10/Subcaves | Shifting Twisted Machinery released Sub. Machine Gun 1005 | -10/Subcaves | A swath of the cavern ceiling suddenly collapsed 1258 | -10/Subcaves | Visited 4L-MR0's lab 1351 | -10/Subcaves | Found Power Bank 1837 | -10/Subcaves | Disturbed a concealed Subdweller 1964 | -10/Subcaves | Disturbed a concealed Subdweller 2088 | -10/Subcaves | Crushed by falling debris 2088 | -10/Subcaves | Core integrity fell below 50% 2618 | -10/Subcaves | Curiously followed by a Cobbler waking with a query about "LVR3C" 2626 | -10/Subcaves | Shifting Twisted Machinery released Sub. Power Source 2635 | -10/Subcaves | Shifting Twisted Machinery released Sub. Monowheel 2902 | -10/Subcaves | Shifting Twisted Machinery released Slug Cannon 2907 | -10/Subcaves | Shifting Twisted Machinery released Sub. Shrapnel Launcher 2976 | -10/Subcaves | Discovered new exit (range 7) 3015 | -10/Subcaves | Learned 4 Materials zone layouts 3128 | -10/Subcaves | Ambushed by Subdwellers from Twisted Machinery 3171 | -10/Subcaves | Core integrity fell below 20% 3201 | -10/Subcaves | Lost 5 parts (1p2n2w) 3362 | -10/Subcaves | Entered Scraptown 3362 | -7/Scraptown | System corruption cleaned by C-Scrubber 3595 | -7/Scraptown | Visited Cyclists 3615 | -7/Scraptown | Visited Junk Repository 3653 | -7/Scraptown | Visited Red Mages 3733 | -7/Scraptown | Visited Shadow of the Wyrm 3784 | -7/Scraptown | Visited Awakened 3794 | -7/Scraptown | Visited Symbiants 3883 | -7/Scraptown | Scanned Subdweller tech in exchange for log data 3888 | -7/Scraptown | Learned Factory terminal intel 3890 | -7/Scraptown | Learned location of Quarantine (-2) 3953 | -7/Scraptown | Discovered new exit (range 13) 3977 | -7/Scraptown | Heard Great Nut preacher, LISTEN AND RECITE! 4413 | -7/Scraptown | Visited UFD Registry 4413 | -7/Scraptown | Registered with UFD as "Spikeshell" 4517 | -7/Scraptown | Guru changed UFD alias to "Armorboard" 4655 | -7/Scraptown | Visited Sword Containment 4708 | -7/Scraptown | Visited Scrapoid Pod Storage 4730 | -7/Scraptown | Visited Research Penetration Think Tank 4837 | -7/Scraptown | Visited LU-1G1's Boring Crew 4867 | -7/Scraptown | Visited Scrap Suit Storage 4872 | -7/Scraptown | Found Scrap Suit 4895 | -7/Scraptown | Visited DA-N13 Charitable Foundation 4899 | -7/Scraptown | Found DCF Scrap (29 items) 4920 | -7/Scraptown | Visited Modified Component R&D 4983 | -7/Scraptown | Visited Infowarlord's Domain 4999 | -7/Scraptown | Visited Science Guys 5192 | -7/Scraptown | Found Exp. Terrain Scan Processor 5528 | -7/Scraptown | Entered Cyclist Reading Room 5666 | -7/Scraptown | Found Scrap Suit 5951 | -7/Scraptown | Met Optimus 5951 | -7/Scraptown | Accepted into 0bPrime 6006 | -7/Scraptown | Discovered new exit (range 3) 6008 | -7/Scraptown | Entered Factory 6008 | -5/Factory | Evolved 10 slots: Propulsion x4, Utility x6 6009 | -5/Factory | Loaded intel: 26 terminal locations 6129 | -5/Factory | Loaded intel: 8 recycling unit locations 6169 | -5/Factory | Learned location of Protoforge (-2) 6180 | -5/Factory | Identified exit to Upper Caves 6295 | -5/Factory | Build established: Scrapper 6439 | -5/Factory | Entered Upper Caves 6603 | -5/Upper Caves | Entered a destroyed Warlord outpost 6660 | -5/Upper Caves | Attracted the attention of an 0b10 checkpoint 6714 | -5/Upper Caves | Discovered new exit (range 14) 6717 | -5/Upper Caves | Encountered a Warlord checkpoint 6956 | -5/Upper Caves | Attacked by a delusional Derelict stockpiling Unaware 7068 | -5/Upper Caves | Entered another Upper Caves area 7068 | -5/Upper Caves | Accompanied by 4 allies 7075 | -5/Upper Caves | Discovered new exit (range 14) 7078 | -5/Upper Caves | Learned 12 Factory zone layouts 7176 | -5/Upper Caves | Lost 3 allies 7267 | -5/Upper Caves | Encountered a Warlord checkpoint 7291 | -5/Upper Caves | Entered a destroyed Warlord outpost 7292 | -5/Upper Caves | Learned Factory non-interactive machine intel 7584 | -5/Upper Caves | Discovered new exit (range 6) 7592 | -5/Upper Caves | Entered Warlord 7923 | -5/Warlord | Received a Watcher feed algorithm from an ecstatic Tinkerer 7972 | -5/Warlord | Found Prototype Reactor 7984 | -5/Warlord | Found Prototype Device 7988 | -5/Warlord | Identified Exp. Cloaking Device 7993 | -5/Warlord | Found Prototype Device 7993 | -5/Warlord | Identified Exp. Focal Shield 8001 | -5/Warlord | Found Spectral Analyzer 8004 | -5/Warlord | Found Prototype Hackware 8024 | -5/Warlord | Warlord's base attacked by MAIN.C 8237 | -5/Warlord | Attached Power Bank, gained temporary slots: Power x3 8237 | -5/Warlord | Identified Vortex Chain Reactor 8243 | -5/Warlord | Found Prototype Energy Gun 8245 | -5/Warlord | Found Prototype Energy Gun 8248 | -5/Warlord | Found Prototype Energy Cannon 8250 | -5/Warlord | Found Prototype Energy Cannon 8252 | -5/Warlord | Found Prototype Energy Cannon 8253 | -5/Warlord | Identified Vortex Driver (x2) 8255 | -5/Warlord | Identified Vortex Rail (x2) 8256 | -5/Warlord | Identified Vortex Cannon 8263 | -5/Warlord | Found Vortex Cannon 8349 | -5/Warlord | Rebuked by Warlord 8370 | -5/Warlord | Build established: Commander-Scrapper 8374 | -5/Warlord | Warlord forces counterattacked 8471 | -5/Warlord | Spotted Striker 8476 | -5/Warlord | Spotted Executioner 8492 | -5/Warlord | Spotted Executioner 8536 | -5/Warlord | Spotted Striker 8536 | -5/Warlord | Spotted Striker 8537 | -5/Warlord | Spotted Striker 8563 | -5/Warlord | P-70 Sage assimilated allied LG-SPL(M) 8616 | -5/Warlord | Lost 28 allies 8699 | -5/Warlord | Warlord base infiltrated, sounded retreat 8700 | -5/Warlord | Enhanced Grunt warped into view 8700 | -5/Warlord | Enhanced Grunt warped into view 8700 | -5/Warlord | Enhanced Grunt warped into view 8700 | -5/Warlord | Enhanced Demolisher warped into view 8700 | -5/Warlord | Enhanced Demolisher warped into view 8700 | -5/Warlord | Enhanced Demolisher warped into view 8704 | -5/Warlord | Spotted Executioner 8704 | -5/Warlord | Spotted Executioner 8795 | -5/Warlord | Discovered new exit (range 13) 8816 | -5/Warlord | Build established: Generator-Scrapper 8826 | -5/Warlord | Spotted Executioner 8828 | -5/Warlord | Spotted Executioner 8857 | -5/Warlord | Lost 4 allies 8880 | -5/Warlord | Entered Proximity Caves 8880 | -4/Proximity Caves | Accompanied by 1 ally 9357 | -4/Proximity Caves | Learned Research emergency access door positions 9378 | -4/Proximity Caves | Spotted B-86 Titan 9379 | -4/Proximity Caves | Entered a huge 0b10 base via the front door 9550 | -4/Proximity Caves | Core integrity fell below 50% 9555 | -4/Proximity Caves | Derelicts attacked a huge 0b10 base 9555 | -4/Proximity Caves | Discovered new exit (range 5) 9630 | -4/Proximity Caves | Lost 6 allies 9707 | -4/Proximity Caves | Lost 4 allies 9901 | -4/Proximity Caves | Destroyed B-86 Titan 9917 | -4/Proximity Caves | Lost 5 allies 9928 | -4/Proximity Caves | Build established: Commander-Scrapper 10184 | -4/Proximity Caves | Entered Factory 10184 | -4/Factory | Accompanied by 5 allies 10184 | -4/Factory | Evolved 2 slots: Propulsion x1, Utility x1 10185 | -4/Factory | Identified exit to Research 10186 | -4/Factory | Loaded intel: 231 non-interactive machine locations 10193 | -4/Factory | Identified System Mapper 10221 | -4/Factory | Garrison activated, responded to threat 10315 | -4/Factory | Sucked down chute 10315 | -4/Factory | Entered Waste 10320 | -4/Waste | 1 allies followed down the chute 10351 | -4/Waste | Spotted C-40 Crusher 10351 | -4/Waste | Spotted C-40 Crusher 10351 | -4/Waste | Spotted C-40 Crusher 10357 | -4/Waste | Spotted C-40 Crusher 10367 | -4/Waste | Spotted C-40 Crusher 10383 | -4/Waste | Spotted C-40 Crusher 10426 | -4/Waste | Crushed by Compactor (0 parts destroyed, 2 dropped) 10441 | -4/Waste | Warlord forces began an assault 10450 | -4/Waste | Allies destroyed C-40 Crusher 10453 | -4/Waste | Allies destroyed C-40 Crusher 10455 | -4/Waste | Allies destroyed C-40 Crusher 10463 | -4/Waste | Allies destroyed C-40 Crusher 10471 | -4/Waste | Allies destroyed C-40 Crusher 10492 | -4/Waste | Lost 6 allies 10591 | -4/Waste | Discovered new exit (range 12) 10697 | -4/Waste | Entered Factory 10697 | -4/Factory | Accompanied by 10 allies 10707 | -4/Factory | Loaded intel: 8 recycling unit locations 10732 | -4/Factory | Garrison activated, responded to threat 10744 | -4/Factory | Spotted B-86 Titan 10772 | -4/Factory | Found Prototype Processor 10772 | -4/Factory | Identified Exp. Melee Analysis Suite 10778 | -4/Factory | Found Exp. Melee Analysis Suite 10780 | -4/Factory | Found Exp. Melee Analysis Suite 10792 | -4/Factory | Discovered exit to Research (range 9) 10822 | -4/Factory | Build established: Scavenger-Mutant 10944 | -4/Factory | Entered Research 10944 | -3/Research | Evolved 2 slots: Utility x1, Weapon x1 10954 | -3/Research | Lost 10 allies 11052 | -3/Research | Loaded intel: 5 recycling unit locations 11098 | -3/Research | Identified exit to Armory 11098 | -3/Research | Identified exit to Testing 11142 | -3/Research | Spotted B-86 Titan 11150 | -3/Research | Entered Testing 11164 | -3/Testing | Found Prototype Protection 11166 | -3/Testing | Identified Med. Regenerative Plating 11168 | -3/Testing | Found Prototype Protection 11169 | -3/Testing | Identified Lgt. Regenerative Plating 11187 | -3/Testing | Protovariant out of control (PX-FECLBGLG1C) 11188 | -3/Testing | Spotted PX-FECLBGLG1C 11267 | -3/Testing | Found Prototype Ballistic Cannon 11267 | -3/Testing | Identified Perforator 11340 | -3/Testing | Found Portable AFG 11451 | -3/Testing | Crushed by falling debris 11451 | -3/Testing | System corruption reached 10% 11452 | -3/Testing | Destroyed 7 combat bots 11458 | -3/Testing | Discovered new exit (range 13) 11472 | -3/Testing | Found Prototype Energy Cannon 11475 | -3/Testing | Entered Research 11475 | -2/Research | Evolved 2 slots: Power x1, Propulsion x1 11476 | -2/Research | Identified Cld. Nova Cannon 11506 | -2/Research | Lost 5 parts (1p2n2u) 11726 | -2/Research | Loaded intel: 5 recycling unit locations 11805 | -2/Research | Spotted B-90 Cyclops 11808 | -2/Research | Identified exit to Quarantine 11838 | -2/Research | Lost 4 parts (1p1n2u) 11930 | -2/Research | Spotted B-90 Cyclops 11934 | -2/Research | Lost 5 parts (1p1n2u1w) 11934 | -2/Research | Entered Quarantine 11954 | -2/Quarantine | Scanned by Researcher 11973 | -2/Quarantine | Core integrity fell below 50% 12012 | -2/Quarantine | Lost 10 parts (1p6n1u2w) 12033 | -2/Quarantine | Found Alien Artifact 12037 | -2/Quarantine | Identified Phase Redirector 12138 | -2/Quarantine | Found Alien Reactor 12150 | -2/Quarantine | Cryocooling Duct disabled 12165 | -2/Quarantine | Ambient heat levels rising (+20) 12165 | -2/Quarantine | Non-combat units ordered to evacuate 12165 | -2/Quarantine | Spotted Fortress 12190 | -2/Quarantine | Discovered new exit (range 6) 12190 | -2/Quarantine | Discovered new exit (range 6) 12193 | -2/Quarantine | Entered Protoforge 12200 | -2/Protoforge | Lost 4 parts (3u1w) 12210 | -2/Protoforge | Superfortress began startup sequence 12220 | -2/Protoforge | Core integrity fell below 20% 12220 | -2/Protoforge | Spotted Hotshot 12220 | -2/Protoforge | Spotted Hotshot 12220 | -2/Protoforge | Spotted Hotshot 12252 | -2/Protoforge | Lost 4 parts (2n2u) 12281 | -2/Protoforge | Spotted Hotshot 12286 | -2/Protoforge | Destroyed by Hotshot with Precision Phase Gun Last Messages --------------- 12256_ Field strength at 58. 12257_ Field strength at 52. 12258_ Field strength at 46. 12259_ TVD&,LHQKWX1=6LDX,L T6 12259_ Field strength at 40. 12260_ Field strength at 34. 12261_ Field strength at 28. 12262_ Field strength at 22. 12263_ Field strength at 16. 12264_ Field strength at 10. 12265_ Field strength at 4. 12266_ Stasis field depleted. 12277_ Slug penetrates Wall. 12277_ Slug penetrates Microcatalyzer. 12277_ Penetrated by Slug. 12280_ Drone sends a signal. 12283_ Slammed into Hotshot. 12283_ Destabilizing: Core damaged (-43). 12284_ Slammed into Hotshot. 12286_ Hotshot activates shielding mode. Map ----- +----------------------------------------------------+ | ?????????????????????????????????????????????????? | | ?????????????????????????????????????????????????? | | ?????????????????????????????????????????????????? | | ?????????????????????????????????????????????????? | | ?????????????????????????????????????????????????? | | ?????????????????????????????????????????????????? | | ?????????????????????????????????????????????????? | | ?????????????????????????????????????????????????? | | ?????????????????????????????????????????????????? | | ?????????????????????????????????????????????????? | | ?????????????????????????????????????????????????? | | ?????????????????????????????????????????????????? | | ?????????????????????????????????????????????????? | | ?????????????????????????????????????????????????? | | ?????????????????????????????????????????????????? | | ?????????????????????????????????????????????????? | | ?????????????????????????????????????????????????? | | ?????????????????????????????????????????????????? | | ?????????????????????????????????????????????????? | | ?????????????????????????????????????????????????? | | ?????????????????????????????????????????????????? | | ?????????????????????????????????????????????????? | | ?????????????????????????????##########??????????? | | ?????????????????????????????# #####??????? | | ??????????? ????????######## " " " " #??????? | | ??????????? #???????# g@ /g" " " ### #??????? | | ??????????? #???????########h" " " ###+#####??? | | ??????????# #??????????????# # #??? | | ??????????# #??????????????# " " " # ""#??? | | ??????????# #??????????????# " " " # ""#??? | | ?########## #??????????????# " " " # ""#??? | | ?? # #??????????????# # T#??? | | ?? "" # #????###############+#### ""#??? | | ???""" # #????# + ""#??? | | ???" """ # #????# # ""#??? | | ???? """ ?# #????# + #??? | | ????" " "?# #????# # """ #??? | | ????? ??# #????# ###+########### """ #??? | | ????? ??# #????# #? ?????????# """ #??? | | ######+#### ###### #?"""?????????# """ #??? | | # """"????????# """ #??? | | # """"????????# ""???#??? | | # """" ???????# ""??????? | | # ???????# ???????? | | ######+###### ###+#####????????????####???????? | | ????????????# #???????????????????????????????? | | ????????????# #???????????????????????????????? | | ????????????# +???????????????????????????????? | | ????????????# #???????????????????????????????? | | ????????????# #???????????????????????????????? | +----------------------------------------------------+ Best States ------------- Heat Dissipation 49 Energy Generation 69 Energy Capacity 910 Matter Stores 300 Matter Capacity 300 Sight Range 24 Terrain Scan Range 16 Terrain Scan Density 1010 Cloak Strength 4 Additional Mass Support 9 Armor Coverage 600 Resistance: KI 30 Propulsion Shielding 66 Phase Shifting 10 Evasion (%) 80 Melee Accuracy 24 Core Analysis 6 Armor Integrity Analysis 40 Recoil Reduction 2 Force Boost 30 Offensive Hacking 20 Defensive Hacking 11 Item Schematics ----------------- Ionic Axe | -3/Testing | Archive Proton Burst Cannon | -2/Quarantine | Archive Diametric Drive | -2/Quarantine | Archive Robot Schematics ------------------ P-80 Master | -3/Testing | Archive Fabricated ------------ Nothing Repaired ---------- Nothing Alien Tech Used ----------------- Phase Redirector Achievements -------------- None Challenges ------------ None Game ------ Seed BiometalClaymoresSuit Manual? 0 Play Time 02:18:50 Cumulative 380.1 hours Start 2025.10.14 @ 01:42:51 End 2025.10.14 @ 04:15:26 Sessions 1 Manual Loads 0 Difficulty Rogue Special Mode None Game No. 496 Rogue 496 Adventurer 0 Explorer 0 Win Type - Total 11 Types 6/0/1/2/1/0/1/0/0/0 Lore% 88 Gallery% 83 Achievement% 70 Wizard Run 0 Options --------- Layout 0 ASCII 0 Keyboard 0 Movement Mouse Keybinds 0 Fullscreen 1 Font 24/Tamsyn Map View 76x50 Zoom Use 0% Tactical HUD 1 Map Filters NONE Filters NONE Steam 1 RUN: 318b0de2-b2b3-4730-9055-ca3cd8b6d332